[Event "Late-Titled-Tuesday-Blitz-June-18-2024"]
[Site "Chess.com"]
[Date "2024.06.18"]
[Round "2"]
[White "ncofre98"]
[Black "ReadySkate"]
[Result "1-0"]
[WhiteElo "2567"]
[BlackElo "2782"]
[TimeControl "180+1"]
[EndTime "14:19:41 PDT"]
[Termination "ncofre98 won by resignation"]

1. e4 {[%clk 0:03:00.9]} 1... c5 {[%clk 0:02:57.2]} 2. Nf3 {[%clk 0:02:59.6]}
2... e6 {[%clk 0:02:57.6]} 3. d3 {[%clk 0:02:59.2]} 3... Nc6 {[%clk 0:02:57.1]}
4. g3 {[%clk 0:02:59.4]} 4... Nf6 {[%clk 0:02:57.5]} 5. Bg2 {[%clk 0:02:59.9]}
5... Be7 {[%clk 0:02:57.8]} 6. O-O {[%clk 0:02:59.3]} 6... O-O {[%clk 0:02:58]}
7. Re1 {[%clk 0:02:55.2]} 7... d5 {[%clk 0:02:58.2]} 8. e5 {[%clk 0:02:54]} 8...
Nd7 {[%clk 0:02:57.8]} 9. Nbd2 {[%clk 0:02:54.4]} 9... Qc7 {[%clk 0:02:57.4]}
10. Qe2 {[%clk 0:02:54.2]} 10... b6 {[%clk 0:02:55.8]} 11. Nf1 {[%clk
0:02:52.9]} 11... Bb7 {[%clk 0:02:56.1]} 12. Bf4 {[%clk 0:02:52.7]} 12... d4
{[%clk 0:02:56.2]} 13. a3 {[%clk 0:02:47.8]} 13... b5 {[%clk 0:02:49]} 14. N1d2
{[%clk 0:02:46.4]} 14... a6 {[%clk 0:02:47.5]} 15. h4 {[%clk 0:02:45.3]} 15...
Rab8 {[%clk 0:02:45.4]} 16. Ne4 {[%clk 0:02:23.7]} 16... Nb6 {[%clk 0:02:15.7]}
17. Nf6+ {[%clk 0:02:04.7]} 17... Kh8 {[%clk 0:02:12.7]} 18. Ng5 {[%clk
0:01:57.9]} 18... h6 {[%clk 0:02:05.4]} 19. Qh5 {[%clk 0:01:51.5]} 19... Nd8
{[%clk 0:01:35.2]} 20. Ngh7 {[%clk 0:01:23.8]} 20... Bxg2 {[%clk 0:01:25]} 21.
Bxh6 {[%clk 0:01:05.1]} 21... g6 {[%clk 0:01:19.5]} 22. Qg5 {[%clk 0:00:50.2]}
22... Rg8 {[%clk 0:01:13.9]} 23. Kxg2 {[%clk 0:00:47.1]} 23... Nd5 {[%clk
0:01:11]} 24. h5 {[%clk 0:00:38.9]} 24... Qc6 {[%clk 0:01:09.3]} 25. Re4 {[%clk
0:00:34.5]} 25... Rg7 {[%clk 0:00:34.8]} 26. Bxg7+ {[%clk 0:00:33.7]} 26... Kxg7
{[%clk 0:00:35.7]} 27. hxg6 {[%clk 0:00:29.7]} 27... fxg6 {[%clk 0:00:35.8]} 28.
Rh1 {[%clk 0:00:28.8]} 28... Nf7 {[%clk 0:00:34.7]} 29. Qg4 {[%clk 0:00:26.4]}
29... Rh8 {[%clk 0:00:28.4]} 30. Nxd5 {[%clk 0:00:17.1]} 30... exd5 {[%clk
0:00:24.9]} 31. Rf4 {[%clk 0:00:15]} 31... Nxe5 {[%clk 0:00:22.8]} 32. Qh3
{[%clk 0:00:15.4]} 32... Qd7 {[%clk 0:00:17]} 33. Qh6+ {[%clk 0:00:15.1]} 33...
Kg8 {[%clk 0:00:17.3]} 34. f3 {[%clk 0:00:08.3]} 34... Qe8 {[%clk 0:00:10]} 35.
Qh3 {[%clk 0:00:06.1]} 35... Kg7 {[%clk 0:00:07.3]} 36. Qe6 {[%clk 0:00:04.9]}
36... Bd8 {[%clk 0:00:04.8]} 37. Qxe8 {[%clk 0:00:03.6]} 37... Rxe8 {[%clk
0:00:05.7]} 38. Re1 {[%clk 0:00:01.7]} 38... Bc7 {[%clk 0:00:05.1]} 39. Ng5
{[%clk 0:00:01.4]} 39... Re7 {[%clk 0:00:02.5]} 40. Rh4 {[%clk 0:00:01.8]} 40...
Kf6 {[%clk 0:00:01.1]} 41. f4 {[%clk 0:00:02.1]} 41... Kg7 {[%clk 0:00:01.5]}
42. fxe5 {[%clk 0:00:02]} 42... Bxe5 {[%clk 0:00:02.4]} 43. Rh7+ {[%clk
0:00:02.3]} 43... Kf6 {[%clk 0:00:02.5]} 44. Rxe7 {[%clk 0:00:03.2]} 44... Kxe7
{[%clk 0:00:03.4]} 45. Rxe5+ {[%clk 0:00:02.8]} 45... Kf6 {[%clk 0:00:04.3]} 46.
Nf3 {[%clk 0:00:03.6]} 46... c4 {[%clk 0:00:05.2]} 47. g4 {[%clk 0:00:04.2]}
47... b4 {[%clk 0:00:04.7]} 48. axb4 {[%clk 0:00:03.8]} 48... a5 {[%clk
0:00:04.7]} 49. bxa5 {[%clk 0:00:04.7]} 49... c3 {[%clk 0:00:05.6]} 50. b3
{[%clk 0:00:05]} 50... g5 {[%clk 0:00:05.1]} 51. b4 {[%clk 0:00:05.9]} 51... Kg6
{[%clk 0:00:06]} 52. Kg3 {[%clk 0:00:06.5]} 52... Kf6 {[%clk 0:00:06.1]} 53.
Rxd5 {[%clk 0:00:07.4]} 1-0

[Event "Late-Titled-Tuesday-Blitz-June-18-2024"]
[Site "Chess.com"]
[Date "2024.06.18"]
[Round "2"]
[White "Oleg_Papayan"]
[Black "Dolphin_2010"]
[Result "0-1"]
[WhiteElo "2543"]
[BlackElo "2785"]
[TimeControl "180+1"]
[EndTime "14:19:43 PDT"]
[Termination "Dolphin_2010 won on time"]

1. d4 {[%clk 0:03:00.9]} 1... d5 {[%clk 0:02:57.3]} 2. Nc3 {[%clk 0:03:01.3]}
2... Nf6 {[%clk 0:02:43.3]} 3. Bf4 {[%clk 0:03:01.4]} 3... a6 {[%clk 0:02:41]}
4. e3 {[%clk 0:02:50.4]} 4... c5 {[%clk 0:02:40.4]} 5. dxc5 {[%clk 0:02:48.6]}
5... Nc6 {[%clk 0:02:37.9]} 6. Nf3 {[%clk 0:02:46]} 6... Bg4 {[%clk 0:02:36.2]}
7. Be2 {[%clk 0:02:35.3]} 7... e6 {[%clk 0:02:34.5]} 8. h3 {[%clk 0:02:32.2]}
8... Bxf3 {[%clk 0:02:28.2]} 9. Bxf3 {[%clk 0:02:33.1]} 9... Bxc5 {[%clk
0:02:28.6]} 10. O-O {[%clk 0:02:31.2]} 10... O-O {[%clk 0:02:27.4]} 11. e4
{[%clk 0:02:23.1]} 11... d4 {[%clk 0:02:01.5]} 12. Ne2 {[%clk 0:02:22.7]} 12...
e5 {[%clk 0:01:57.5]} 13. Bg5 {[%clk 0:02:11.6]} 13... Be7 {[%clk 0:01:53.9]}
14. Nc1 {[%clk 0:02:01]} 14... h6 {[%clk 0:01:42.7]} 15. Bh4 {[%clk 0:01:55.6]}
15... Nd7 {[%clk 0:01:42.3]} 16. Bg3 {[%clk 0:01:50.6]} 16... Nc5 {[%clk
0:01:42.8]} 17. Nd3 {[%clk 0:01:50.5]} 17... Nxd3 {[%clk 0:01:42.8]} 18. cxd3
{[%clk 0:01:46.2]} 18... Bg5 {[%clk 0:01:41.2]} 19. Bg4 {[%clk 0:01:33.7]} 19...
Qf6 {[%clk 0:01:37.9]} 20. a3 {[%clk 0:01:27.8]} 20... g6 {[%clk 0:01:35.1]} 21.
Qb3 {[%clk 0:01:25.4]} 21... h5 {[%clk 0:01:15.6]} 22. Be2 {[%clk 0:01:24.2]}
22... Kg7 {[%clk 0:01:10.5]} 23. Rab1 {[%clk 0:01:01.3]} 23... b5 {[%clk
0:01:05.4]} 24. h4 {[%clk 0:00:59.1]} 24... Bxh4 {[%clk 0:01:03.4]} 25. Bxh4
{[%clk 0:00:45.5]} 25... Qxh4 {[%clk 0:01:04.3]} 26. Rbc1 {[%clk 0:00:42.3]}
26... Qf6 {[%clk 0:00:58.5]} 27. Qd5 {[%clk 0:00:37]} 27... Ne7 {[%clk
0:00:57.5]} 28. Qb7 {[%clk 0:00:33.1]} 28... Rfb8 {[%clk 0:00:56]} 29. Qd7
{[%clk 0:00:32.4]} 29... Rd8 {[%clk 0:00:55.5]} 30. Qb7 {[%clk 0:00:31.4]} 30...
Qd6 {[%clk 0:00:51.7]} 31. Rc2 {[%clk 0:00:22.9]} 31... Rab8 {[%clk 0:00:47.8]}
32. Qc7 {[%clk 0:00:18]} 32... Qe6 {[%clk 0:00:43.3]} 33. Rfc1 {[%clk
0:00:16.4]} 33... h4 {[%clk 0:00:39.7]} 34. Rc5 {[%clk 0:00:12.6]} 34... Kf6
{[%clk 0:00:27.3]} 35. Rc6 {[%clk 0:00:09.2]} 35... Rbc8 {[%clk 0:00:27.1]} 36.
Rxe6+ {[%clk 0:00:09.1]} 36... fxe6 {[%clk 0:00:27.6]} 37. Qb6 {[%clk
0:00:04.4]} 37... Rxc1+ {[%clk 0:00:27.2]} 38. Kh2 {[%clk 0:00:05.2]} 38... Rdc8
{[%clk 0:00:16.6]} 39. Bg4 {[%clk 0:00:05.1]} 39... R1c6 {[%clk 0:00:15.4]} 40.
Qb7 {[%clk 0:00:04.5]} 40... R8c7 {[%clk 0:00:12.8]} 41. Qb8 {[%clk 0:00:03.8]}
41... Rc8 {[%clk 0:00:12.5]} 42. Qb7 {[%clk 0:00:04.2]} 42... Kf7 {[%clk
0:00:13.4]} 43. g3 {[%clk 0:00:03.1]} 43... R8c7 {[%clk 0:00:13.2]} 44. Qb8
{[%clk 0:00:03.3]} 44... hxg3+ {[%clk 0:00:11.8]} 45. Kxg3 {[%clk 0:00:03.2]}
45... Nc8 {[%clk 0:00:12.4]} 46. f4 {[%clk 0:00:02.4]} 46... Kf6 {[%clk
0:00:09.9]} 47. fxe5+ {[%clk 0:00:02.3]} 47... Kxe5 {[%clk 0:00:10.8]} 48. Kf3
{[%clk 0:00:02.8]} 48... g5 {[%clk 0:00:11.1]} 49. Kg3 {[%clk 0:00:02.9]} 49...
Kd6 {[%clk 0:00:11.1]} 50. e5+ {[%clk 0:00:01.4]} 50... Kxe5 {[%clk 0:00:11]}
51. Bf3 {[%clk 0:00:02.3]} 51... Rc2 {[%clk 0:00:05.9]} 52. Qb6 {[%clk
0:00:02.7]} 52... Nxb6 {[%clk 0:00:05.8]} 0-1

[Event "Late-Titled-Tuesday-Blitz-June-18-2024"]
[Site "Chess.com"]
[Date "2024.06.18"]
[Round "2"]
[White "imdvb6307"]
[Black "cedchass2006"]
[Result "1-0"]
[WhiteElo "2526"]
[BlackElo "2326"]
[TimeControl "180+1"]
[EndTime "14:19:43 PDT"]
[Termination "imdvb6307 won by resignation"]

1. d4 {[%clk 0:03:00.9]} 1... Nf6 {[%clk 0:02:58.5]} 2. Nf3 {[%clk 0:03:00.9]}
2... d5 {[%clk 0:02:58.3]} 3. e3 {[%clk 0:03:00.5]} 3... c5 {[%clk 0:02:56.5]}
4. c3 {[%clk 0:03:00.3]} 4... Nc6 {[%clk 0:02:56.1]} 5. Nbd2 {[%clk 0:03:00.3]}
5... e6 {[%clk 0:02:55.1]} 6. Bd3 {[%clk 0:02:59.9]} 6... b6 {[%clk 0:02:44.6]}
7. O-O {[%clk 0:02:50.7]} 7... Bd6 {[%clk 0:02:40.9]} 8. e4 {[%clk 0:02:39]}
8... dxe4 {[%clk 0:02:38.7]} 9. Nxe4 {[%clk 0:02:38.6]} 9... Nxe4 {[%clk
0:02:39.2]} 10. Bxe4 {[%clk 0:02:38.7]} 10... Bb7 {[%clk 0:02:39.4]} 11. Be3
{[%clk 0:02:14.3]} 11... cxd4 {[%clk 0:02:36.9]} 12. Bxd4 {[%clk 0:02:03.9]}
12... O-O {[%clk 0:02:35.5]} 13. h3 {[%clk 0:01:54.2]} 13... Nxd4 {[%clk
0:02:31.9]} 14. Bxb7 {[%clk 0:01:49]} 14... Nxf3+ {[%clk 0:02:30.8]} 15. Qxf3
{[%clk 0:01:48.8]} 15... Rb8 {[%clk 0:02:30.9]} 16. Be4 {[%clk 0:01:37.3]} 16...
Qc7 {[%clk 0:02:26.6]} 17. Rfe1 {[%clk 0:01:34.2]} 17... g6 {[%clk 0:02:26.1]}
18. a4 {[%clk 0:01:32.2]} 18... a5 {[%clk 0:02:17.2]} 19. Bd3 {[%clk 0:01:28.5]}
19... Be5 {[%clk 0:02:05.4]} 20. h4 {[%clk 0:01:24]} 20... Bg7 {[%clk
0:02:00.5]} 21. h5 {[%clk 0:01:19.7]} 21... Qc5 {[%clk 0:01:57]} 22. hxg6 {[%clk
0:01:17]} 22... hxg6 {[%clk 0:01:56.9]} 23. Qg4 {[%clk 0:01:02.4]} 23... Rbd8
{[%clk 0:01:53]} 24. Re3 {[%clk 0:01:02]} 24... Rd5 {[%clk 0:01:42.6]} 25. Rh3
{[%clk 0:00:46.3]} 25... Rg5 {[%clk 0:01:36.6]} 26. Qf3 {[%clk 0:00:41.4]} 26...
Rh5 {[%clk 0:01:32.8]} 27. Rxh5 {[%clk 0:00:40.7]} 27... Qxh5 {[%clk 0:01:32.4]}
28. Qxh5 {[%clk 0:00:32.6]} 28... gxh5 {[%clk 0:01:31.8]} 29. Kf1 {[%clk
0:00:32.6]} 29... Rd8 {[%clk 0:01:31.3]} 30. Ke2 {[%clk 0:00:32.6]} 30... Kf8
{[%clk 0:01:31.5]} 31. Rh1 {[%clk 0:00:32]} 31... Rd5 {[%clk 0:01:28]} 32. f4
{[%clk 0:00:30.4]} 32... Bf6 {[%clk 0:01:21]} 33. g3 {[%clk 0:00:30]} 33... Rc5
{[%clk 0:01:17.4]} 34. Ke3 {[%clk 0:00:29.8]} 34... Ke7 {[%clk 0:01:14.9]} 35.
Be2 {[%clk 0:00:29.8]} 35... Bg7 {[%clk 0:01:09.9]} 36. Bxh5 {[%clk 0:00:29.1]}
36... Rc4 {[%clk 0:01:09.6]} 37. Bd1 {[%clk 0:00:28.3]} 37... Bf6 {[%clk
0:01:05.2]} 38. Rh5 {[%clk 0:00:26.6]} 38... Rc6 {[%clk 0:00:59.9]} 39. Rh7
{[%clk 0:00:26.2]} 39... Rd6 {[%clk 0:00:56.3]} 40. Be2 {[%clk 0:00:26]} 40...
Rd8 {[%clk 0:00:52.4]} 41. g4 {[%clk 0:00:26]} 41... Rh8 {[%clk 0:00:52.3]} 42.
Rxh8 {[%clk 0:00:25]} 42... Bxh8 {[%clk 0:00:52.8]} 43. Kd3 {[%clk 0:00:24.5]}
43... Kd6 {[%clk 0:00:52.5]} 44. Kc4 {[%clk 0:00:24.3]} 44... Bg7 {[%clk
0:00:46.5]} 45. Kb5 {[%clk 0:00:23.7]} 45... Kc7 {[%clk 0:00:46.4]} 46. g5
{[%clk 0:00:24.1]} 46... Bf8 {[%clk 0:00:46.1]} 47. Bh5 {[%clk 0:00:23.6]} 47...
Bd6 {[%clk 0:00:32.2]} 48. Bxf7 {[%clk 0:00:23.5]} 48... Bxf4 {[%clk 0:00:31.9]}
49. g6 {[%clk 0:00:24.1]} 49... Bh6 {[%clk 0:00:31.6]} 50. Bxe6 {[%clk
0:00:24.4]} 50... Bg7 {[%clk 0:00:31.8]} 51. Bf5 {[%clk 0:00:22.7]} 51... Kb7
{[%clk 0:00:31.2]} 52. Be4+ {[%clk 0:00:22.8]} 52... Kc7 {[%clk 0:00:31.4]} 53.
Bg2 {[%clk 0:00:22.9]} 53... Bf6 {[%clk 0:00:31.4]} 54. Kc4 {[%clk 0:00:22.6]}
54... Bg7 {[%clk 0:00:31.7]} 55. Kd5 {[%clk 0:00:22.7]} 55... Kd7 {[%clk
0:00:32.3]} 56. Bh3+ {[%clk 0:00:21.6]} 56... Kc7 {[%clk 0:00:17.1]} 57. Ke6
{[%clk 0:00:21.1]} 57... Bh6 {[%clk 0:00:15.3]} 58. Kf7 {[%clk 0:00:20.6]} 58...
Kc6 {[%clk 0:00:14.8]} 59. Bf1 {[%clk 0:00:20.8]} 59... Kc5 {[%clk 0:00:14.7]}
60. g7 {[%clk 0:00:20.9]} 60... Bxg7 {[%clk 0:00:14.8]} 61. Kxg7 {[%clk
0:00:21.3]} 61... Kd5 {[%clk 0:00:15.7]} 62. Kf6 {[%clk 0:00:21.5]} 62... Ke4
{[%clk 0:00:16.6]} 63. Ke6 {[%clk 0:00:21.2]} 63... Ke3 {[%clk 0:00:17.1]} 64.
Kd5 {[%clk 0:00:21.3]} 64... Kd2 {[%clk 0:00:18]} 65. Kc6 {[%clk 0:00:20.6]}
65... Kc2 {[%clk 0:00:18.5]} 66. Kxb6 {[%clk 0:00:20.7]} 66... Kxb2 {[%clk
0:00:19.2]} 67. c4 {[%clk 0:00:20.8]} 67... Kc3 {[%clk 0:00:20.1]} 68. Kb5
{[%clk 0:00:21.2]} 1-0

[Event "Late-Titled-Tuesday-Blitz-June-18-2024"]
[Site "Chess.com"]
[Date "2024.06.18"]
[Round "2"]
[White "NigelDwarf"]
[Black "MikeSailer"]
[Result "1-0"]
[WhiteElo "2447"]
[BlackElo "2058"]
[TimeControl "180+1"]
[EndTime "14:19:43 PDT"]
[Termination "NigelDwarf won on time"]

1. e4 {[%clk 0:02:55.6]} 1... d5 {[%clk 0:02:59.3]} 2. exd5 {[%clk 0:02:54.7]}
2... Qxd5 {[%clk 0:02:58.1]} 3. Nc3 {[%clk 0:02:54.9]} 3... Qd6 {[%clk
0:02:57.9]} 4. d4 {[%clk 0:02:54.1]} 4... c6 {[%clk 0:02:53.4]} 5. Nf3 {[%clk
0:02:53.3]} 5... Nf6 {[%clk 0:02:51]} 6. Ne5 {[%clk 0:02:50]} 6... Nbd7 {[%clk
0:02:48]} 7. Bf4 {[%clk 0:02:42.8]} 7... Nxe5 {[%clk 0:02:46.1]} 8. Bxe5 {[%clk
0:02:43.4]} 8... Qb4 {[%clk 0:02:44.7]} 9. Qd2 {[%clk 0:02:14.2]} 9... Bf5
{[%clk 0:02:30.2]} 10. O-O-O {[%clk 0:02:07]} 10... e6 {[%clk 0:02:30]} 11. f3
{[%clk 0:01:59.6]} 11... h5 {[%clk 0:02:24.5]} 12. Kb1 {[%clk 0:01:55.4]} 12...
O-O-O {[%clk 0:02:22.1]} 13. a3 {[%clk 0:01:20]} 13... Qa5 {[%clk 0:02:21.8]}
14. Bc4 {[%clk 0:01:06.5]} 14... Bd6 {[%clk 0:02:20.1]} 15. Bxd6 {[%clk
0:00:58.7]} 15... Rxd6 {[%clk 0:02:18.8]} 16. Nb5 {[%clk 0:00:59.2]} 16... Bxc2+
{[%clk 0:02:00.7]} 17. Ka1 {[%clk 0:00:46.8]} 17... Qxb5 {[%clk 0:01:11.8]} 18.
Bxb5 {[%clk 0:00:45.6]} 18... Bxd1 {[%clk 0:01:11.5]} 19. Qb4 {[%clk 0:00:30]}
19... Rhd8 {[%clk 0:01:00.3]} 20. Ba6 {[%clk 0:00:26.5]} 20... bxa6 {[%clk
0:00:47.3]} 21. Rxd1 {[%clk 0:00:26.2]} 21... Nd5 {[%clk 0:00:45.8]} 22. Qc5
{[%clk 0:00:23.8]} 22... Kb7 {[%clk 0:00:42.5]} 23. Rd3 {[%clk 0:00:22.9]} 23...
Nb6 {[%clk 0:00:36.5]} 24. Ka2 {[%clk 0:00:19.1]} 24... Rd5 {[%clk 0:00:29.3]}
25. Qe7+ {[%clk 0:00:18.8]} 25... R8d7 {[%clk 0:00:29.6]} 26. Qf8 {[%clk
0:00:18.7]} 26... g6 {[%clk 0:00:29.9]} 27. Qg7 {[%clk 0:00:15.9]} 27... c5
{[%clk 0:00:25.9]} 28. g4 {[%clk 0:00:11.2]} 28... hxg4 {[%clk 0:00:25.2]} 29.
fxg4 {[%clk 0:00:11.1]} 29... cxd4 {[%clk 0:00:22.3]} 30. h4 {[%clk 0:00:07.7]}
30... e5 {[%clk 0:00:22.7]} 31. h5 {[%clk 0:00:04.7]} 31... e4 {[%clk
0:00:22.8]} 32. Rh3 {[%clk 0:00:04]} 32... gxh5 {[%clk 0:00:21.2]} 33. gxh5
{[%clk 0:00:03.9]} 33... d3 {[%clk 0:00:13.9]} 34. h6 {[%clk 0:00:04.2]} 34...
d2 {[%clk 0:00:12]} 35. h7 {[%clk 0:00:04.5]} 35... d1=Q {[%clk 0:00:11.9]} 36.
h8=Q {[%clk 0:00:04.8]} 36... Qa4 {[%clk 0:00:05]} 37. Rc3 {[%clk 0:00:04.1]}
37... Rc7 {[%clk 0:00:02.8]} 38. Rxc7+ {[%clk 0:00:03.7]} 38... Kxc7 {[%clk
0:00:03.6]} 39. Qxf7+ {[%clk 0:00:04.2]} 39... Rd7 {[%clk 0:00:04.2]} 40. Qe5+
{[%clk 0:00:04]} 40... Kb7 {[%clk 0:00:04.3]} 41. Qff4 {[%clk 0:00:03.7]} 41...
Qc4+ {[%clk 0:00:04]} 42. b3 {[%clk 0:00:02.6]} 42... Qc2+ {[%clk 0:00:04.2]}
43. Qb2 {[%clk 0:00:02.8]} 43... Qxb2+ {[%clk 0:00:04.4]} 44. Kxb2 {[%clk
0:00:03.7]} 44... Re7 {[%clk 0:00:04.1]} 45. Kc2 {[%clk 0:00:03.4]} 45... Nd5
{[%clk 0:00:03.9]} 46. Qd6 {[%clk 0:00:03.4]} 46... e3 {[%clk 0:00:01.3]} 47.
Qxd5+ {[%clk 0:00:03.4]} 1-0

[Event "Late-Titled-Tuesday-Blitz-June-18-2024"]
[Site "Chess.com"]
[Date "2024.06.18"]
[Round "2"]
[White "Sic_Transit_GM"]
[Black "Tulipnoir"]
[Result "1/2-1/2"]
[WhiteElo "2553"]
[BlackElo "2357"]
[TimeControl "180+1"]
[EndTime "14:19:44 PDT"]
[Termination "Game drawn by repetition"]

1. Nf3 {[%clk 0:03:00.9]} 1... Nf6 {[%clk 0:02:59.3]} 2. c4 {[%clk 0:03:00.5]}
2... e6 {[%clk 0:02:57.3]} 3. e3 {[%clk 0:03:00.1]} 3... d5 {[%clk 0:02:56.9]}
4. b3 {[%clk 0:03:00.1]} 4... Be7 {[%clk 0:02:56.3]} 5. Bb2 {[%clk 0:03:00.1]}
5... O-O {[%clk 0:02:56.5]} 6. g3 {[%clk 0:03:00]} 6... c5 {[%clk 0:02:55.1]} 7.
Bg2 {[%clk 0:02:58.2]} 7... Nc6 {[%clk 0:02:54.5]} 8. O-O {[%clk 0:02:58.4]}
8... d4 {[%clk 0:02:47.2]} 9. exd4 {[%clk 0:02:58.1]} 9... cxd4 {[%clk
0:02:47.1]} 10. d3 {[%clk 0:02:58.5]} 10... Re8 {[%clk 0:02:42.6]} 11. Re1
{[%clk 0:02:57.2]} 11... Bb4 {[%clk 0:02:37.7]} 12. Nbd2 {[%clk 0:02:56.6]}
12... a5 {[%clk 0:02:28.1]} 13. a3 {[%clk 0:02:56.2]} 13... Bc5 {[%clk
0:02:24.9]} 14. Ne5 {[%clk 0:02:55.4]} 14... Bd7 {[%clk 0:02:10.1]} 15. Nxc6
{[%clk 0:02:32.1]} 15... Bxc6 {[%clk 0:02:07.5]} 16. Nf3 {[%clk 0:02:30]} 16...
Qc7 {[%clk 0:01:53.1]} 17. Nxd4 {[%clk 0:02:23.5]} 17... Bxd4 {[%clk 0:01:46.7]}
18. Bxd4 {[%clk 0:02:23]} 18... Bxg2 {[%clk 0:01:30.7]} 19. Kxg2 {[%clk
0:02:23.9]} 19... e5 {[%clk 0:01:26.3]} 20. Bc3 {[%clk 0:02:17.4]} 20... Rad8
{[%clk 0:01:13.8]} 21. Qe2 {[%clk 0:02:16.5]} 21... Nd7 {[%clk 0:00:58.7]} 22.
d4 {[%clk 0:02:10.4]} 22... e4 {[%clk 0:00:47.9]} 23. Qd2 {[%clk 0:01:53.5]}
23... a4 {[%clk 0:00:44.7]} 24. Qb2 {[%clk 0:01:40.4]} 24... axb3 {[%clk
0:00:41.2]} 25. Qxb3 {[%clk 0:01:41.3]} 25... b6 {[%clk 0:00:32.6]} 26. Rac1
{[%clk 0:01:34]} 26... Rc8 {[%clk 0:00:31.6]} 27. Bb4 {[%clk 0:01:31.9]} 27...
h5 {[%clk 0:00:29.3]} 28. h4 {[%clk 0:01:31.1]} 28... Nf6 {[%clk 0:00:27.1]} 29.
d5 {[%clk 0:01:28.5]} 29... Ng4 {[%clk 0:00:26.4]} 30. Qb2 {[%clk 0:00:59.4]}
30... Qd7 {[%clk 0:00:25.7]} 31. Qd4 {[%clk 0:00:54.1]} 31... Qf5 {[%clk
0:00:24]} 32. Re2 {[%clk 0:00:50.1]} 32... Qf3+ {[%clk 0:00:23.3]} 33. Kg1
{[%clk 0:00:39.9]} 33... Qxe2 {[%clk 0:00:23.3]} 34. Bc3 {[%clk 0:00:38.8]}
34... f6 {[%clk 0:00:23.1]} 35. Re1 {[%clk 0:00:38.8]} 35... Qf3 {[%clk
0:00:22.4]} 36. d6 {[%clk 0:00:38.4]} 36... Rcd8 {[%clk 0:00:21.6]} 37. Qxb6
{[%clk 0:00:36.9]} 37... e3 {[%clk 0:00:21]} 38. Bd4 {[%clk 0:00:31.4]} 38...
exf2+ {[%clk 0:00:20.5]} 39. Bxf2 {[%clk 0:00:32.3]} 39... Rxe1+ {[%clk
0:00:20.1]} 40. Bxe1 {[%clk 0:00:32.6]} 40... Qe3+ {[%clk 0:00:19.3]} 41. Qxe3
{[%clk 0:00:32.1]} 41... Nxe3 {[%clk 0:00:20.2]} 42. c5 {[%clk 0:00:33]} 42...
Nc4 {[%clk 0:00:16.7]} 43. Bb4 {[%clk 0:00:32]} 43... Kf7 {[%clk 0:00:15.9]} 44.
Kf2 {[%clk 0:00:32.5]} 44... Ke6 {[%clk 0:00:15.9]} 45. Ke2 {[%clk 0:00:33]}
45... Kd5 {[%clk 0:00:16.1]} 46. Kd3 {[%clk 0:00:33.5]} 46... Ne5+ {[%clk
0:00:14.9]} 47. Kc3 {[%clk 0:00:33.4]} 47... Nc6 {[%clk 0:00:15.8]} 48. Kb3
{[%clk 0:00:30.9]} 48... g5 {[%clk 0:00:16]} 49. Ka4 {[%clk 0:00:31.1]} 49...
gxh4 {[%clk 0:00:15.1]} 50. gxh4 {[%clk 0:00:30.8]} 50... f5 {[%clk 0:00:16]}
51. Kb5 {[%clk 0:00:31.5]} 51... f4 {[%clk 0:00:15.4]} 52. Be1 {[%clk
0:00:30.5]} 52... f3 {[%clk 0:00:15.1]} 53. Bf2 {[%clk 0:00:31.1]} 53... Rd7
{[%clk 0:00:14.8]} 54. a4 {[%clk 0:00:29.7]} 54... Na7+ {[%clk 0:00:12.7]} 55.
Kb6 {[%clk 0:00:29.6]} 55... Nc6 {[%clk 0:00:12.3]} 56. a5 {[%clk 0:00:29.4]}
56... Rg7 {[%clk 0:00:11.6]} 57. a6 {[%clk 0:00:28.7]} 57... Rf7 {[%clk
0:00:11.5]} 58. Kb5 {[%clk 0:00:23.5]} 58... Rh7 {[%clk 0:00:10.5]} 59. Kb6
{[%clk 0:00:23.3]} 59... Rf7 {[%clk 0:00:10.4]} 60. Kb5 {[%clk 0:00:23.5]} 60...
Rh7 {[%clk 0:00:10.5]} 61. Kb6 {[%clk 0:00:23.8]} 61... Rf7 {[%clk 0:00:10.8]}
1/2-1/2